bitfinex/quotes_SOLUSD_20240827
["timestamp","ask_amount","ask_price","bid_price","bid_amount"]
[1724794374280,6.6104,151.28,151.21,31.3418]
[1724794374662,50.0,151.29,151.21,31.3418]
[1724794375260,6.6102,151.29,151.21,37.955]
[1724794375660,50.0,151.29,151.21,31.3418]
[1724794375886,6.609,151.31,151.22,6.73789]
[1724794376076,6.609,151.31,151.23,0.12549]
[1724794377259,56.6095,151.3,151.23,0.12549]
[1724794377466,6.6095,151.3,151.23,0.12549]
[1724794378182,6.6089,151.31,151.23,0.12549]
[1724794378560,6.6094,151.3,151.22,0.12549]
[1724794378861,56.6089,151.31,151.23,6.6123]
[1724794379078,56.6089,151.31,151.24,0.12549]
[1724794379783,50.0,151.31,151.24,6.86268]
[1724794380874,6.6099,151.29,151.24,0.25098]
[1724794381084,50.0,151.31,151.23,0.25098]
[1724794382080,56.6089,151.31,151.23,6.86298]
[1724794382484,56.6089,151.31,151.24,6.6119]
[1724794382785,50.0,151.31,151.25,0.25098]
[1724794384779,6.6081,151.33,151.25,6.86248]
[1724794385160,6.6081,151.33,151.26,6.6111]
[1724794385459,6.6081,151.33,151.27,0.25098]
[1724794385774,50.0,151.34,151.29,32.9354]
[1724794390581,50.0,151.36,151.3,1.32170148]
[1724794390777,50.0,151.36,151.31,0.12549]
[1724794391382,50.0,151.38,151.32,1.3215177]
[1724794391687,50.0,151.38,151.33,1.32139407]
[1724794392068,6.6056,151.39,151.33,1.32139407]
[1724794392386,50.0,151.4,151.33,1.32139407]
[1724794392387,6.605,151.4,151.34,0.12549]
[1724794392585,6.605,151.4,151.34,1.44670945]
[1724794392762,50.0,151.41,151.34,1.44670945]
[1724794393583,0.8285013,151.42,151.35,32.2237]
[1724794393786,0.8285013,151.42,151.36,8.17851585]
[1724794394189,0.8285013,151.42,151.36,20.75201585]
[1724794394391,0.8285013,151.42,151.37,6.606]
[1724794394571,0.8285013,151.42,151.38,1.57164134]
[1724794395879,0.8285013,151.42,151.38,6.85678]
[1724794396084,0.8285013,151.42,151.38,0.25098]
[1724794396583,0.8285013,151.42,151.36,62.7466357]
[1724794396584,50.0,151.49,151.4,33.6571357]
[1724794396787,50.0,151.49,151.41,0.25098]
[1724794397090,35.0,151.5,151.42,16.51]
[1724794397291,50.0,151.48,151.43,0.12549]
[1724794397470,50.0,151.48,151.43,0.25098]
[1724794397677,50.0,151.48,151.43,1.57142075]
[1724794398491,91.6007,151.5,151.43,0.25098]
[1724794400595,50.0,151.48,151.43,0.25098]
[1724794401098,50.0,151.48,151.42,0.25098]
[1724794401296,91.6007,151.5,151.42,6.85498]
[1724794402180,85.0,151.5,151.43,39.7237]
[1724794402389,85.0,151.5,151.44,0.25098]
[1724794402994,85.0,151.5,151.44,6.85378]
[1724794403586,91.6007,151.5,151.44,0.25098]
[1724794403785,85.0,151.5,151.44,0.25098]
[1724794403982,85.0,151.5,151.44,1.56871724]
[1724794404187,35.0,151.5,151.44,1.56871724]
[1724794404391,35.0,151.5,151.44,0.25098]
[1724794404598,35.0,151.5,151.44,6.85418]
[1724794407995,35.0,151.5,151.47,6.6019]
[1724794408194,35.0,151.5,151.48,1.57092028]
[1724794408408,35.0,151.5,151.49,1.32001555]
[1724794408708,35.0,151.5,151.48,0.25098]
[1724794408709,35.0,151.5,151.48,1.57099555]
[1724794413108,35.0,151.5,151.48,8.17239555]
[1724794413409,35.0,151.5,151.49,6.601]
[1724794413591,35.0,151.5,151.49,6.85198]
[1724794414106,35.0,151.5,151.49,0.25098]
[1724794415113,35.0,151.5,151.49,6.85198]
[1724794418401,1.6667,151.5,151.49,38.85918]
[1724794418592,1.6667,151.5,151.49,40.17881005]
[1724794419410,3.714208,151.56,151.53,16.4982]
[1724794419615,3.714208,151.56,151.54,1.57017468]
[1724794420696,3.714208,151.56,151.55,6.5984]
[1724794420907,3.714208,151.56,151.55,6.84938]
[1724794421092,3.714208,151.56,151.55,8.16862475]
[1724794421410,0.8285013,151.57,151.56,38.1856]
[1724794421620,0.8285013,151.57,151.56,38.43658]
[1724794423608,0.7030113,151.57,151.56,38.43658]
[1724794424696,6.5932,151.67,151.58,6.5967]
[1724794424894,19.2625,151.68,151.59,6.72199]
[1724794425245,6.5923,151.69,151.61,6.5958]
[1724794425395,6.5928,151.68,151.62,0.12549]
[1724794426017,6.5928,151.68,151.61,0.25098]
[1724794427209,6.5924,151.69,151.61,6.84678]
[1724794427409,37.8925,151.7,151.62,6.5954]
[1724794427617,6.5919,151.7,151.63,0.25098]
[1724794427920,6.5925,151.69,151.63,0.25098]
[1724794428119,6.5936,151.67,151.63,0.25098]
[1724794428301,50.0,151.67,151.57,16.4938]
[1724794429627,6.5937,151.66,151.58,6.5967]
[1724794429836,50.0,151.67,151.58,6.5967]
[1724794429837,6.5933,151.67,151.58,6.5967]
[1724794430323,6.5933,151.67,151.59,0.25098]
[1724794431006,50.0,151.67,151.57,16.4938]
[1724794431202,6.5942,151.65,151.57,23.0912]
[1724794431627,50.0,151.67,151.58,6.597]
[1724794431926,33.50970534,151.68,151.58,6.597]
[1724794432426,6.5934,151.67,151.59,6.5965]
[1724794432624,6.5929,151.68,151.6,6.5961]
[1724794433030,6.5929,151.68,151.61,0.25098]
[1724794433220,6.5923,151.69,151.61,6.84668]
[1724794433530,6.5928,151.68,151.61,0.25098]
[1724794433928,6.5926,151.69,151.61,51.84668]
[1724794434608,6.5926,151.69,151.62,6.5954]
[1724794434932,6.5926,151.69,151.63,45.25098]
[1724794435233,6.5926,151.69,151.64,45.0]
[1724794435433,6.5926,151.69,151.65,0.25098]
[1724794435611,6.5926,151.69,151.65,0.12549]
[1724794438610,31.0645013,151.73,151.67,6.5929]
[1724794438611,0.8285013,151.73,151.67,6.5929]
[1724794438816,0.8285013,151.73,151.68,45.25098]
[1724794439226,7.4192013,151.73,151.69,45.0]
[1724794439431,7.4192013,151.73,151.67,45.0]
[1724794439432,50.0,151.71,151.67,45.0]
[1724794439620,56.5915,151.71,151.67,45.0]
[1724794439919,84.33820664,151.73,151.67,45.0]
[1724794440123,84.33820664,151.73,151.66,45.0]
[1724794440430,6.5916,151.71,151.66,45.0]
[1724794440621,83.50970534,151.71,151.66,45.0]
[1724794440824,83.50970534,151.71,151.67,0.12549]
[1724794441412,84.33820664,151.73,151.67,0.12549]
[1724794441938,6.5916,151.71,151.67,0.12549]
[1724794442123,40.92920664,151.73,151.67,0.25098]
[1724794442326,7.4192013,151.73,151.67,0.25098]
[1724794443432,0.8285013,151.73,151.67,6.84398]
[1724794443626,0.8285013,151.73,151.68,45.0]
[1724794443824,0.8285013,151.73,151.69,0.25098]
[1724794444018,0.8285013,151.73,151.69,0.12549]
[1724794444737,0.8285013,151.73,151.68,45.12549]
[1724794444936,0.8285013,151.73,151.69,0.12549]
[1724794448739,0.8285013,151.73,151.69,0.87437014]
[1724794448943,0.8285013,151.73,151.7,0.12549]
[1724794449722,0.8285013,151.73,151.7,45.12549]
[1724794449923,0.8285013,151.73,151.71,0.12549]
[1724794452538,0.8285013,151.73,151.71,0.98575233]
[1724794452735,0.8285013,151.73,151.72,0.12549]
[1724794454629,0.8285013,151.73,151.72,51.71649]
[1724794454835,0.8285013,151.73,151.72,51.84198]
[1724794457144,0.8285013,151.73,151.72,6.591]
[1724794457327,0.8285013,151.73,151.71,16.4779]
[1724794457945,0.8285013,151.73,151.71,23.069]
[1724794458155,0.8285013,151.73,151.7,6.5919]
[1724794458331,0.8285013,151.73,151.69,6.592]
[1724794459528,0.8285013,151.73,151.7,0.12549]
[1724794459731,0.8285013,151.73,151.7,45.25098]
[1724794462632,0.8285013,151.73,151.71,1.31800344]
[1724794462846,0.8285013,151.73,151.72,0.25098]
[1724794463547,0.8285013,151.73,151.71,0.25098]
[1724794463926,12.7944,151.72,151.6,64.9353]
[1724794464127,13.38400699,151.7,151.64,6.5941]
[1724794464348,13.38400699,151.68,151.6,31.9554]
[1724794464650,13.38400699,151.68,151.61,6.5958]
[1724794464829,13.38400699,151.66,151.61,6.5958]
[1724794465425,13.38400699,151.66,151.6,6.5962]
[1724794466145,6.5934,151.67,151.6,6.5962]
[1724794466354,6.5934,151.67,151.59,23.0879]
[1724794466546,50.0,151.65,151.59,16.4913]
[1724794466757,6.5938,151.66,151.59,23.0879]
[1724794467135,6.5938,151.66,151.59,16.4913]
[1724794467338,50.0,151.65,151.59,16.4913]
[1724794467546,6.5946,151.64,151.56,6.598]
[1724794467741,33.49929583,151.64,151.55,16.4959]
[1724794468036,50.0,151.63,151.52,16.4991]
[1724794468233,50.0,151.61,151.52,19.9461726]
[1724794468462,56.5959,151.61,151.52,19.9461726]
[1724794468753,6.5963,151.6,151.52,23.0985]
[1724794468957,12.7606,151.59,151.52,23.0985]
[1724794469148,6.5975,151.58,151.49,22.62413039]
[1724794469356,40.09679583,151.58,151.49,16.5026]
[1724794469736,64.86654097,151.57,151.49,16.5026]
[1724794469936,8.26884097,151.56,151.49,16.5026]
[1724794470161,56.5977,151.57,151.49,23.1035]
[1724794470356,8.26941844,151.56,151.49,23.1035]
[1724794470562,6.5998,151.52,151.43,6.6033]
[1724794470773,50.0,151.53,151.42,33.0023]
[1724794470947,50.0,151.51,151.42,6.90276778]
[1724794471147,50.0,151.51,151.43,6.6034]
[1724794471354,12.9005,151.5,151.41,16.5105]
[1724794471557,12.9005,151.5,151.42,6.604]
[1724794473263,50.0,151.46,151.37,16.5154]
[1724794473460,50.0,151.46,151.37,23.1216]
[1724794473674,50.0,151.46,151.38,6.6057]
[1724794473850,50.0,151.41,151.24,5.0]
[1724794474047,50.0,151.41,151.19,0.8285013]
[1724794474048,50.0,151.41,151.28,33.49929583]
[1724794475067,50.0,151.41,151.34,6.6075]
[1724794475440,50.0,151.43,151.34,6.6075]
[1724794475641,43.841,151.45,151.39,33.49929583]
[1724794475837,50.0,151.48,151.39,33.49929583]
[1724794476044,50.0,151.48,151.36,16.516]
[1724794476258,50.0,151.48,151.38,33.49929583]
[1724794476564,50.0,151.48,151.39,20.0]
[1724794476768,50.0,151.48,151.4,45.25098]
[1724794476943,50.0,151.48,151.4,51.85578]
[1724794477145,94.7952,151.5,151.42,6.6039]
[1724794477346,94.7952,151.5,151.43,51.85448]
[1724794477540,94.7952,151.5,151.43,6.85448]
[1724794477743,50.0,151.49,151.44,45.0]
[1724794477958,50.0,151.49,151.45,0.25098]
[1724794479165,50.0,151.49,151.45,6.85368]
[1724794479354,50.0,151.49,151.46,45.0]
[1724794479555,50.0,151.49,151.47,0.12549]
[1724794479755,44.7952,151.5,151.45,0.25098]
[1724794479957,50.0,151.52,151.45,6.85368]
[1724794480157,50.0,151.52,151.46,45.0]
[1724794480465,56.5989,151.54,151.47,0.25098]
[1724794480673,50.0,151.54,151.47,0.25098]
[1724794481562,50.0,151.52,151.47,0.25098]
[1724794481770,50.0,151.54,151.47,0.25098]
[1724794481957,50.0,151.54,151.47,6.85288]
[1724794482157,50.0,151.54,151.48,51.6013]
[1724794482358,50.0,151.54,151.49,0.25098]
[1724794483475,43.934,151.56,151.5,16.5011]
[1724794483679,43.934,151.56,151.51,45.25098]
[1724794484163,50.0,151.57,151.51,45.25098]
[1724794484366,50.0,151.59,151.52,6.5997]
[1724794484561,50.0,151.59,151.53,45.25098]
[1724794487878,50.0,151.59,151.53,51.85018]
[1724794490090,50.0,151.59,151.53,45.25098]
[1724794493975,50.0,151.59,151.53,0.25098]
[1724794494173,56.5968,151.59,151.53,0.25098]
[1724794495098,50.0,151.59,151.53,0.25098]
[1724794500187,50.0,151.57,151.53,0.25098]
[1724794502173,6.5972,151.58,151.53,0.25098]
[1724794502374,50.0,151.57,151.53,0.25098]
[1724794502685,12.5889,151.61,151.54,6.5987]
[1724794502887,20.0,151.6,151.55,45.25098]
[1724794503989,70.0,151.6,151.55,45.25098]
[1724794505697,8.26999851,151.59,151.55,45.25098]
[1724794505874,70.0,151.6,151.55,0.25098]
[1724794506075,50.0,151.64,151.58,6.5971]
[1724794506300,51.4147,151.66,151.59,61.74258]
[1724794506301,8.269101,151.63,151.59,61.74258]
[1724794506603,101.4147,151.66,151.59,61.74258]
[1724794506604,6.5941,151.65,151.59,45.25098]
[1724794506787,6.5941,151.65,151.6,45.0]
[1724794506992,8.26786514,151.64,151.61,0.12549]
[1724794507291,8.26786514,151.63,151.61,0.12549]
[1724794507595,8.26786514,151.62,151.61,0.12549]
[1724794507822,8.26786514,151.62,151.6,0.12549]
[1724794507997,94.821,151.66,151.6,0.12549]
[1724794508205,28.26782115,151.65,151.6,0.12549]
[1724794508493,58.26782115,151.64,151.6,0.12549]
[1724794508701,8.26782115,151.63,151.6,0.12549]
[1724794508875,33.5320108,151.67,151.59,20.25098]
[1724794508876,50.0,151.67,151.59,20.25098]
[1724794509076,8.26599228,151.66,151.6,45.0]
[1724794509276,8.26599228,151.65,151.61,0.25098]
[1724794509498,8.26599228,151.64,151.61,0.25098]
[1724794509701,50.0,151.67,151.61,6.84668]
[1724794509894,8.26582191,151.66,151.62,45.0]
[1724794510205,8.26582191,151.65,151.63,0.25098]
[1724794510402,8.26582191,151.64,151.63,0.25098]
[1724794510699,8.26582191,151.64,151.63,6.84598]
[1724794510902,82.6183,151.7,151.63,51.84598]
[1724794511196,8.26492863,151.69,151.64,45.0]
[1724794511400,82.6183,151.7,151.64,45.0]
[1724794511401,8.26492863,151.68,151.65,0.25098]
[1724794511600,8.26492863,151.67,151.65,0.25098]
[1724794511781,8.26492863,151.66,151.65,0.25098]
[1724794511980,8.26492863,151.69,151.65,0.25098]
[1724794512181,8.26492863,151.68,151.65,0.25098]
[1724794512381,8.26492863,151.67,151.65,0.25098]
[1724794512589,8.26492863,151.66,151.65,0.25098]
[1724794512981,8.26492863,151.66,151.65,6.84508]
[1724794513185,63.9679013,151.73,151.65,51.84508]
[1724794513407,28.26409514,151.72,151.66,45.0]
[1724794513604,8.26409514,151.71,151.67,0.25098]
[1724794513913,8.26409514,151.7,151.67,0.25098]
[1724794514087,8.26409514,151.69,151.67,0.25098]
[1724794514291,13.9679013,151.73,151.67,0.25098]
[1724794514598,8.26268475,151.72,151.67,0.25098]
[1724794514791,8.26268475,151.71,151.67,6.84408]
[1724794514992,0.8285013,151.73,151.68,45.0]
[1724794515202,8.26252412,151.72,151.69,0.12549]
[1724794515385,0.8285013,151.73,151.69,0.25098]
[1724794515386,8.26252412,151.71,151.69,0.25098]
[1724794515592,0.8285013,151.73,151.69,0.25098]
[1724794515788,8.2625211,151.72,151.69,0.25098]
[1724794516084,8.2625211,151.71,151.69,0.25098]
[1724794516282,0.8285013,151.73,151.69,0.25098]
[1724794516484,8.2623638,151.72,151.69,0.25098]
[1724794516680,8.26292282,151.71,151.69,0.25098]
[1724794516884,0.8285013,151.73,151.69,0.25098]
[1724794517102,8.26307298,151.72,151.69,0.25098]
[1724794517290,0.8285013,151.73,151.69,0.25098]
[1724794517485,8.26257038,151.72,151.69,0.25098]
[1724794517690,0.8285013,151.73,151.69,0.25098]
[1724794517906,58.26255043,151.72,151.69,0.25098]
[1724794518088,50.0,151.72,151.69,0.25098]
[1724794518288,0.8285013,151.73,151.69,0.25098]
[1724794518495,8.26274375,151.72,151.69,0.25098]
[1724794518698,50.8285013,151.73,151.69,0.25098]
[1724794518915,64.85384559,151.72,151.69,0.25098]
[1724794519108,56.5911,151.72,151.69,0.25098]
[1724794519406,50.0,151.7,151.69,0.12549]
[1724794520010,64.8557867,151.7,151.68,45.0]
[1724794520213,56.5919,151.7,151.62,16.4884]
[1724794520390,8.26432804,151.69,151.62,16.4884]
[1724794520593,8.26512935,151.68,151.62,16.4884]
[1724794520891,6.5928,151.68,151.6,51.7534]
[1724794521093,90.1243108,151.7,151.61,6.5958]
[1724794521292,8.26491208,151.69,151.61,6.5958]
[1724794521493,8.26491208,151.68,151.61,6.5958]
[1724794521800,8.26491208,151.68,151.62,0.12549]
[1724794522007,8.26491208,151.68,151.61,6.5958]
[1724794522216,8.26491208,151.68,151.62,6.5954]
[1724794522413,90.1239108,151.7,151.62,6.5954]
[1724794522790,8.26496787,151.69,151.62,6.5954]
[1724794522991,8.26496787,151.68,151.62,6.5954]
[1724794523293,90.1239108,151.7,151.63,45.25098]
[1724794523504,8.26457961,151.69,151.63,45.25098]
[1724794523702,8.26457961,151.68,151.63,45.25098]
[1724794523908,90.1239108,151.7,151.63,45.25098]
[1724794524097,8.2649304,151.69,151.63,45.25098]
[1724794524295,8.2649304,151.68,151.63,45.25098]
[1724794524506,8.2649304,151.68,151.63,0.25098]
[1724794524986,56.5936,151.67,151.59,6.5964]
[1724794525189,56.5936,151.67,151.6,20.0]
[1724794525609,8.26563683,151.66,151.6,20.0]
[1724794525796,56.5936,151.67,151.6,20.0]
[1724794525993,50.0,151.65,151.6,20.0]
[1724794527300,50.0,151.65,151.61,45.12549]
[1724794527500,50.0,151.65,151.62,0.12549]
[1724794532418,50.0,151.65,151.61,45.12549]
[1724794532419,50.0,151.58,151.5,44.6685]
[1724794532724,33.5320108,151.55,151.48,16.5028]
[1724794533020,33.5320108,151.53,151.46,44.6685]
[1724794534301,33.5320108,151.53,151.47,6.6018]
[1724794534508,33.5320108,151.53,151.46,44.6685]
[1724794534509,33.5320108,151.53,151.46,51.2708]
[1724794535617,33.5320108,151.53,151.46,44.6685]
[1724794535807,33.5320108,151.53,151.46,51.2705]
[1724794536801,33.5320108,151.53,151.47,65.25098]
[1724794537906,50.0,151.54,151.47,65.25098]
[1724794539230,6.5993,151.53,151.47,65.25098]
[1724794539523,50.0,151.54,151.47,65.25098]
[1724794539726,6.5986,151.55,151.47,71.85248]
[1724794541017,50.0,151.53,151.47,20.0]
[1724794542031,83.5320108,151.55,151.47,20.0]
[1724794542333,83.5320108,151.55,151.45,16.5066]
[1724794542334,83.5320108,151.55,151.48,45.12549]
[1724794542527,83.5320108,151.55,151.48,0.25098]
[1724794542720,83.5320108,151.55,151.48,20.25098]
[1724794542920,83.5320108,151.55,151.49,45.0]
[1724794543121,83.5320108,151.55,151.5,0.25098]
[1724794543729,83.5320108,151.51,151.38,43.5021]
[1724794543914,50.0,151.51,151.38,43.5021]
[1724794544116,56.6027,151.46,151.38,43.5021]
[1724794544413,50.0,151.44,151.38,12.3067]
[1724794545913,50.0,151.46,151.38,12.3067]
[1724794546123,50.0,151.46,151.38,18.9122]
[1724794546613,50.0,151.46,151.38,12.3067]
[1724794547015,50.0,151.48,151.38,18.9124]
[1724794547227,6.6012,151.49,151.38,18.9124]
[1724794547228,20.0,151.47,151.39,45.25098]
[1724794547720,20.0,151.48,151.39,45.25098]
[1724794548735,20.0,151.48,151.39,51.85628]
[1724794549536,20.0,151.49,151.39,51.85628]
[1724794551226,50.0,151.47,151.39,6.6053]
[1724794552518,50.0,151.47,151.4,45.25098]
[1724794553735,50.0,151.47,151.41,45.0]
[1724794553935,50.0,151.47,151.42,0.25098]
[1724794554138,50.0,151.47,151.42,0.12549]
[1724794557846,56.6023,151.47,151.42,0.12549]
[1724794562444,6.6029,151.45,151.39,45.0]
[1724794562648,50.0,151.44,151.38,12.3067]
[1724794562837,50.0,151.44,151.37,6.6062]
[1724794563037,50.0,151.44,151.38,20.0]
[1724794563833,50.0,151.44,151.39,0.25098]
[1724794564638,50.0,151.44,151.39,45.25098]
[1724794567249,50.0,151.42,151.39,45.25098]
[1724794568136,83.5320108,151.42,151.39,45.25098]
[1724794568642,83.5320108,151.42,151.39,0.12549]
[1724794573548,93.1236,151.44,151.39,0.12549]
[1724794573734,114.0805108,151.44,151.38,45.25098]
[1724794573934,8.27779324,151.43,151.38,0.25098]
[1724794574149,83.5320108,151.44,151.38,0.25098]
[1724794574329,50.0,151.44,151.38,0.25098]
[1724794574530,8.27806949,151.42,151.38,0.25098]
[1724794574959,56.6033,151.44,151.38,0.25098]
[1724794575127,8.27811225,151.43,151.38,0.25098]
[1724794575330,8.27811225,151.42,151.38,0.25098]
[1724794575547,50.0,151.44,151.38,0.25098]
[1724794575751,8.27811436,151.43,151.38,0.25098]
[1724794575938,8.27811436,151.42,151.38,0.25098]
[1724794576138,50.0,151.44,151.38,0.25098]
[1724794576435,8.27807043,151.43,151.38,0.25098]
[1724794576635,8.27807043,151.42,151.38,0.25098]
[1724794576836,8.27807043,151.41,151.38,0.25098]
[1724794577150,8.27807909,151.4,151.38,0.25098]
[1724794577337,50.0,151.44,151.38,0.25098]
[1724794577537,8.27807354,151.43,151.38,0.25098]
[1724794577738,8.27807354,151.42,151.38,0.25098]
[1724794577967,8.27807354,151.41,151.38,0.25098]
[1724794578170,8.27807354,151.4,151.38,0.25098]
[1724794578452,8.27807354,151.39,151.38,0.25098]
[1724794579257,8.27807354,151.39,151.36,16.5159]
[1724794579553,6.6038,151.43,151.36,16.5159]
[1724794579757,8.27809208,151.42,151.36,16.5159]
[1724794580055,8.27809208,151.41,151.36,16.5159]
[1724794580257,6.6038,151.43,151.36,16.5159]
[1724794580258,8.27809208,151.4,151.37,45.12549]
[1724794580552,8.27813231,151.39,151.38,0.12549]
[1724794583860,8.27807772,151.39,151.38,0.12549]
[1724794584434,8.27807772,151.39,151.38,6.73129]
[1724794584637,8.27741119,151.39,151.38,51.85678]
[1724794584938,8.27736238,151.39,151.38,51.85678]
[1724794585447,8.27736238,151.39,151.38,45.25098]
[1724794587650,90.19831483,151.46,151.38,45.25098]
[1724794587862,8.27778815,151.39,151.38,45.25098]
[1724794590562,90.19831483,151.46,151.38,45.25098]
[1724794590856,28.2777761,151.45,151.39,45.12549]
[1724794591065,28.2777761,151.45,151.4,0.12549]
[1724794591559,8.2777761,151.44,151.4,0.12549]
[1724794591741,8.2777761,151.43,151.4,0.12549]
[1724794591942,8.2777761,151.42,151.4,0.12549]
[1724794592142,8.2777761,151.41,151.33,16.5197]
[1724794592337,8.2777761,151.4,151.35,26.6068]
[1724794592554,8.2777761,151.39,151.35,26.6068]
[1724794592752,8.2777761,151.38,151.35,26.6068]
[1724794592963,8.2777761,151.37,151.35,26.6068]
[1724794593164,8.2777761,151.36,151.35,26.6068]
[1724794593361,8.2777761,151.43,151.35,26.6068]
[1724794593674,8.2777761,151.42,151.36,0.12549]
[1724794593869,8.2777761,151.41,151.36,0.25098]
[1724794594047,90.19921483,151.44,151.36,45.25098]
[1724794594373,8.2791331,151.4,151.36,45.25098]
[1724794594666,8.2791331,151.43,151.36,45.25098]
[1724794594868,8.2791331,151.42,151.36,45.25098]
[1724794595065,8.2791331,151.41,151.36,45.25098]
[1724794595368,8.2791331,151.4,151.36,45.25098]
[1724794595570,8.2791331,151.39,151.36,45.25098]
[1724794595766,8.2791331,151.38,151.36,45.25098]
[1724794596067,8.2791331,151.37,151.36,51.85768]
[1724794597358,90.19921483,151.44,151.36,51.85768]
[1724794597558,8.27924955,151.37,151.36,51.85768]
[1724794598568,8.27918822,151.37,151.36,68.37458]
[1724794601353,8.27918822,151.37,151.36,61.76788]
[1724794601949,8.27918822,151.37,151.3,54.02446356]
[1724794602148,8.27918822,151.36,151.32,6.6084]
[1724794602367,8.27918822,151.35,151.31,6.6088]
[1724794602563,8.27918822,151.35,151.3,63.93846356]
[1724794602564,8.27918822,151.34,151.3,63.93846356]
[1724794602763,8.27918822,151.33,151.3,63.93846356]
[1724794603049,8.27918822,151.32,151.31,6.6089]
[1724794603260,83.59591483,151.4,151.32,6.6084]
[1724794603457,8.28043664,151.39,151.32,6.6084]
[1724794603751,8.28043664,151.38,151.33,45.25098]
[1724794604067,8.28043664,151.37,151.33,45.25098]
[1724794604267,8.28043664,151.36,151.33,45.25098]
[1724794604476,8.28043664,151.35,151.33,45.25098]
[1724794604662,8.28043664,151.34,151.33,45.25098]
[1724794607373,8.28043664,151.34,151.3,23.132]
[1724794607573,8.28043664,151.33,151.3,23.132]
[1724794607875,8.28043664,151.32,151.31,6.6089]
[1724794608270,70.05354086,151.4,151.32,6.6084]
[1724794608454,13.44854086,151.38,151.3,16.523]
[1724794608657,8.28089721,151.37,151.3,16.523]
[1724794608847,8.28089721,151.36,151.3,16.523]
[1724794609052,8.28089721,151.35,151.3,16.523]
[1724794609253,8.28089721,151.35,151.31,6.6085]
[1724794609562,8.28089721,151.34,151.31,6.6085]
[1724794609764,8.28089721,151.33,151.32,45.25098]
[1724794610257,8.28089721,151.33,151.32,45.0]
[1724794610458,8.28089721,151.33,151.31,45.0]
[1724794610762,8.28089721,151.32,151.31,45.0]
[1724794611274,8.28089721,151.32,151.31,51.6089]
[1724794611654,8.28089721,151.37,151.31,51.6089]
[1724794611861,8.28089721,151.36,151.32,0.25098]
[1724794612166,8.28089721,151.35,151.32,0.25098]
[1724794612363,8.28089721,151.34,151.32,0.25098]
[1724794612576,63.44854086,151.38,151.32,0.25098]
[1724794612577,8.28089721,151.33,151.32,0.25098]
[1724794612765,8.28089721,151.37,151.32,0.25098]
[1724794613080,8.28089721,151.36,151.32,0.25098]
[1724794613271,8.28089721,151.35,151.3,16.523]
[1724794613580,8.28089721,151.34,151.3,23.1323]
[1724794613778,8.28089721,151.33,151.3,23.1323]
[1724794613958,8.28089721,151.32,151.3,23.1323]
[1724794614159,8.28089721,151.31,151.3,16.523]
[1724794614662,13.44854086,151.36,151.3,16.523]
[1724794614663,13.44854086,151.36,151.3,61.77398]
[1724794614861,13.44854086,151.36,151.31,45.25098]
[1724794615063,13.44854086,151.36,151.25,13.44854086]
[1724794615064,13.44854086,151.32,151.21,45.6974]
[1724794615383,50.0,151.3,151.18,13.44854086]
[1724794615562,13.44854086,151.29,151.2,6.6136]
[1724794615762,50.0,151.3,151.21,6.6132]
[1724794618592,50.0,151.3,151.22,0.12549]
[1724794618593,63.44854086,151.3,151.22,0.12549]
[1724794618898,63.44854086,151.3,151.21,45.25098]
[1724794619391,50.0,151.3,151.21,51.86418]
[1724794619583,63.44854086,151.3,151.21,51.86418]
[1724794620290,70.05794086,151.3,151.21,51.86418]
[1724794621299,6.6098,151.29,151.19,23.9773013]
[1724794621483,63.44854086,151.3,151.2,6.6135]
[1724794621884,63.44854086,151.3,151.21,6.6131]
[1724794622090,70.05794086,151.3,151.21,6.6131]
[1724794622294,63.44854086,151.3,151.19,30.81194216]